Workbook

Sheet Sheet1
A1: Taylor Approximations to Polar Curves
B3: This graphing utility produces the graphs
B4: of any polar curve based on
C5: r = f(Q)
B6: and the curve for the Taylor polynomial based on
C7: r = g(Q)
B8: on any interval from Q = a to Q = b.
A10: Enter the f(Q) function in terms of Q: r = f(Q) = | F10: sin(Q)
A13: Enter the Taylor approximation to f in terms of Q:
E14: r = g(Q) = | F14: Q-Q^3/6+Q^5/120
A18: Now enter the interval for Q:
B19: Starting value Q = a = | D19: -2
B20: Ending value Q = b = | D20: 3
I23: The graph of the polar function
J24: r = | K24: =F10 -> sin(Q)
A26: Click each item below for suggestions and investigations
C27: Item 1 | I27: Now trace along the polar curve:
C28: Item 2 | I28: Q = | J28: =D19+K28*Sheet2!B12 -> -1.860 | K28: 14
C29: Item 3 | I29: r = | J29: =LOOKUP(J28,Sheet2!C3:C504,Sheet2!D3:D504) -> -0.955
I31: Along the approximating Taylor function:
I32: r = | J32: =LOOKUP($J28,Sheet2!C3:C503,Sheet2!G3:G503) -> -0.971
A33: To access/download all the DIGMath Apps for Numerical Analysis
A34: Click this link: | C34: https://we-dig-math.org/dynamic-numerical-analysis.htm
A36: Created by: Sheldon P. Gordon © 2026
A37: Farmingdale State College
A38: Development of this module was supported by the
A39: NSF's Division of Undergraduate Education
A40: under grants DUE-0310123 and DUE-0442160.

Sheet Sheet2
C1: Q | D1: r = f(Q) | E1: x | F1: y | G1: r = g(Q) | H1: x | I1: y | K1: Tracing point
J2: Q | K2: x | L2: y
C3: =a -> -2 | D3: =FNA -> -0.9092974268 | E3: =D3*COS(C3) -> 0.3784012477 | F3: =D3*SIN(C3) -> 0.8268218104 | G3: =FNB -> -0.9333333333 | H3: =G3*COS(C3) -> 0.3884037141 | I3: =G3*SIN(C3) -> 0.8486775984 | J3: =Sheet1!J28 -> -1.860279441 | K3: =LOOKUP($J3,$C3:$C504,E3:E504) -> 0.2818779961 | L3: =LOOKUP($J3,$C3:$C504,F3:F504) -> 0.9129706954 | M3: f(Q) | N3: green
C4: =C3+B$12 -> -1.99001996 | D4: -0.9134052367 | E4: =D4*COS(C4) -> 0.3718029154 | F4: =D4*SIN(C4) -> 0.8343091265 | G4: -0.9366266481 | H4: =G4*COS(C4) -> 0.3812552243 | I4: =G4*SIN(C4) -> 0.8555196852 | J4: =J3 -> -1.860279441 | K4: =LOOKUP($J4,$C3:$C504,H3:H504) -> 0.286342528 | L4: =LOOKUP($J4,$C3:$C504,I3:I504) -> 0.9274308051 | M4: T(Q) | N4: red
C5: =C4+B$12 -> -1.98003992 | D5: -0.9174220712 | E5: 0.3650564601 | F5: 0.8416632567 | G5: -0.9398525795 | H5: 0.373981907 | I5: 0.8622415001
C6: -1.97005988 | D6: -0.92134753 | E6: 0.3581645693 | F6: 0.848881271 | G6: -0.9430101633 | H6: 0.3665856998 | I6: 0.8688400847
C7: -1.96007984 | D7: -0.9251812223 | E7: 0.3511299888 | F7: 0.8559602941 | G7: -0.9460984547 | H7: 0.3590686147 | I7: 0.8753125247
C8: -1.9500998 | D8: -0.9289227662 | E8: 0.3439555211 | F8: 0.8628975055 | G8: -0.9491165285 | H8: 0.3514327369 | I8: 0.8816559511
C9: -1.94011976 | D9: -0.932571789 | E9: 0.3366440244 | F9: 0.8696901417 | G9: -0.9520634789 | H9: 0.3436802236 | I9: 0.8878675418
C10: -1.930139721 | D10: -0.9361279274 | E10: 0.3291984115 | F10: 0.8763354964 | G10: -0.9549384196 | H10: 0.3358133025 | I10: 0.8939445235
C11: -1.920159681 | D11: -0.939590827 | E11: 0.3216216488 | F11: 0.8828309222 | G11: -0.9577404833 | H11: 0.3278342705 | I11: 0.8998841728
A12: delta Q = | B12: =(Sheet1!D20-Sheet1!D19)/501 -> 0.00998003992 | C12: -1.910179641 | D12: -0.9429601431 | E12: 0.3139167547 | F12: 0.8891738315 | G12: -0.9604688221 | H12: 0.3197454928 | I12: 0.905683818
C13: -1.900199601 | D13: -0.94623554 | E13: 0.3060867989 | F13: 0.8953616971 | G13: -0.963122607 | H13: 0.311549401 | I13: 0.9113408401
C14: -1.890219561 | D14: -0.9494166915 | E14: 0.2981349006 | F14: 0.901392054 | G14: -0.965701028 | H14: 0.303248492 | I14: 0.9168526749
C15: -1.880239521 | D15: -0.9525032807 | E15: 0.2900642279 | F15: 0.9072624997 | G15: -0.9682032938 | H15: 0.2948453266 | I15: 0.9222168137
C16: -1.870259481 | D16: -0.9554950002 | E16: 0.2818779961 | F16: 0.9129706954 | G16: -0.9706286322 | H16: 0.286342528 | I16: 0.9274308051
C17: -1.860279441 | D17: -0.9583915521 | E17: 0.2735794665 | F17: 0.9185143672 | G17: -0.9729762893 | H17: 0.2777427801 | I17: 0.932492256
C18: -1.850299401 | D18: -0.9611926478 | E18: 0.2651719451 | F18: 0.9238913063 | G18: -0.9752455299 | H18: 0.2690488267 | I18: 0.9373988332
C19: -1.840319361 | D19: -0.9638980084 | E19: 0.2566587815 | F19: 0.9290993707 | G19: -0.9774356373 | H19: 0.2602634692 | I19: 0.9421482641
C20: -1.830339321 | D20: -0.9665073644 | E20: 0.2480433671 | F20: 0.9341364855 | G20: -0.979545913 | H20: 0.2513895656 | I20: 0.9467383387
C21: -1.820359281 | D21: -0.9690204559 | E21: 0.2393291344 | F21: 0.939000644 | G21: -0.981575677 | H21: 0.2424300289 | I21: 0.9511669101
C22: -1.810379242 | D22: -0.9714370326 | E22: 0.230519555 | F22: 0.9436899084 | G22: -0.9835242672 | H22: 0.2333878252 | I22: 0.9554318957
C23: -1.800399202 | D23: -0.9737568538 | E23: 0.2216181385 | F23: 0.9482024104 | G23: -0.9853910398 | H23: 0.2242659726 | I23: 0.9595312787
C24: -1.790419162 | D24: -0.9759796885 | E24: 0.2126284312 | F24: 0.9525363524 | G24: -0.9871753688 | H24: 0.2150675393 | I24: 0.9634631089
C25: -1.780439122 | D25: -0.9781053153 | E25: 0.2035540146 | F25: 0.9566900077 | G25: -0.9888766459 | H25: 0.2057956419 | I25: 0.9672255035
C26: -1.770459082 | D26: -0.9801335223 | E26: 0.1943985037 | F26: 0.9606617216 | G26: -0.9904942811 | H26: 0.1964534441 | I26: 0.9708166485
C27: -1.760479042 | D27: -0.9820641078 | E27: 0.1851655461 | F27: 0.9644499117 | G27: -0.9920277014 | H27: 0.1870441549 | I27: 0.9742347995
C28: -1.750499002 | D28: -0.9838968792 | E28: 0.1758588202 | F28: 0.968053069 | G28: -0.9934763519 | H28: 0.1775710268 | I28: 0.9774782822
C29: -1.740518962 | D29: -0.9856316542 | E29: 0.1664820335 | F29: 0.9714697578 | G29: -0.9948396948 | H29: 0.1680373543 | I29: 0.9805454941
C30: -1.730538922 | D30: -0.9872682599 | E30: 0.1570389219 | F30: 0.974698617 | G30: -0.99611721 | H30: 0.158446472 | I30: 0.9834349046
C31: -1.720558882 | D31: -0.9888065333 | E31: 0.1475332472 | F31: 0.9777383604 | G31: -0.9973083943 | H31: 0.1488017534 | I31: 0.986145056
C32: -1.710578842 | D32: -0.9902463213 | E32: 0.1379687966 | F32: 0.9805877768 | G32: -0.9984127619 | H32: 0.1391066084 | I32: 0.9886745645
C33: -1.700598802 | D33: -0.9915874803 | E33: 0.1283493803 | F33: 0.983245731 | G33: -0.999429844 | H33: 0.1293644824 | I33: 0.9910221208
C34: -1.690618762 | D34: -0.9928298768 | E34: 0.1186788308 | F34: 0.9857111643 | G34: -1.000359189 | H34: 0.119578854 | I34: 0.9931864903
C35: -1.680638723 | D35: -0.9939733871 | E35: 0.1089610005 | F35: 0.9879830943 | G35: -1.001200362 | H35: 0.1097532334 | I35: 0.9951665146
C36: -1.670658683 | D36: -0.9950178973 | E36: 0.09919976119 | F36: 0.990060616 | G36: -1.001952944 | H36: 0.09989116077 | I36: 0.9969611114
C37: -1.660678643 | D37: -0.9959633034 | E37: 0.08939900149 | F37: 0.9919429017 | G37: -1.002616534 | H37: 0.08999620441 | I37: 0.9985692754
C38: -1.650698603 | D38: -0.9968095111 | E38: 0.07956262599 | F38: 0.9936292015 | G38: -1.003190748 | H38: 0.08007195895 | I38: 0.9999900789
C39: -1.640718563 | D39: -0.9975564363 | E39: 0.0696945534 | F39: 0.9951188435 | G39: -1.003675216 | H39: 0.07012204363 | I39: 1.001222672
C40: -1.630738523 | D40: -0.9982040044 | E40: 0.05979871509 | F40: 0.9964112344 | G40: -1.004069587 | H40: 0.06015010048 | I40: 1.002266282
C41: -1.620758483 | D41: -0.9987521511 | E41: 0.04987905348 | F41: 0.9975058593 | G41: -1.004373525 | H41: 0.0501597926 | I41: 1.003120218
C42: -1.610778443 | D42: -0.9992008217 | E42: 0.03993952048 | F42: 0.998402282 | G42: -1.00458671 | H42: 0.04015480232 | I42: 1.003783866
C43: -1.600798403 | D43: -0.9995499715 | E43: 0.0299840759 | F43: 0.9991001455 | G43: -1.004708839 | H43: 0.03013882941 | I43: 1.004256691
C44: -1.590818363 | D44: -0.9997995657 | E44: 0.02001668593 | F44: 0.9995991716 | G44: -1.004739624 | H44: 0.02011558934 | I44: 1.004538239
C45: -1.580838323 | D45: -0.9999495796 | E45: 0.01004132147 | F45: 0.9998991617 | G45: -1.004678793 | H45: 0.01008881142 | I45: 1.004628137
C46: -1.570858283 | D46: -0.9999999981 | E46: 6.195663808e-05 | F46: 0.9999999962 | G46: -1.004526091 | H46: 6.223705958e-05 | I46: 1.004526089
C47: -1.560878244 | D47: -0.9999508162 | E47: -0.009917432878 | F47: 0.9999016348 | G47: -1.004281277 | H47: -0.009960382047 | I47: 1.004231883
C48: -1.550898204 | D48: -0.9998020389 | E48: -0.01989287137 | F48: 0.9996041169 | G48: -1.003944127 | H48: -0.01997528572 | I48: 1.003745385
C49: -1.540918164 | D49: -0.9995536809 | E49: -0.02986038471 | F49: 0.999107561 | G49: -1.003514432 | H49: -0.02997870707 | I49: 1.003066544
C50: -1.530938124 | D50: -0.999205767 | E50: -0.03981600193 | F50: 0.9984121648 | G50: -1.002991997 | H50: -0.03996687431 | I50: 1.002195388
C51: -1.520958084 | D51: -0.9987583318 | E51: -0.04975575679 | F51: 0.9975182054 | G51: -1.002376645 | H51: -0.04993601251 | I51: 1.001132026
C52: -1.510978044 | D52: -0.9982114199 | E52: -0.05967568937 | F52: 0.9964260389 | G52: -1.001668212 | H52: -0.05988234542 | I52: 0.9998766478
C53: -1.500998004 | D53: -0.9975650858 | E53: -0.06957184767 | F53: 0.9951361005 | G53: -1.000866549 | H53: -0.0698020972 | I53: 0.998429525
C54: -1.491017964 | D54: -0.9968193939 | E54: -0.07944028912 | F54: 0.993648904 | G54: -0.9999715243 | H54: -0.07969149425 | I54: 0.9967910087
C55: -1.481037924 | D55: -0.9959744184 | E55: -0.08927708224 | F55: 0.991965042 | G55: -0.9989830187 | H55: -0.08954676694 | I55: 0.994961531
C56: -1.471057884 | D56: -0.9950302434 | E56: -0.09907830812 | F56: 0.9900851853 | G56: -0.9979009289 | H56: -0.09936415135 | I56: 0.9929416042
C57: -1.461077844 | D57: -0.9939869631 | E57: -0.108840062 | F57: 0.9880100828 | G57: -0.9967251661 | H57: -0.1091398911 | I57: 0.9907318209
C58: -1.451097804 | D58: -0.9928446813 | E58: -0.118558455 | F58: 0.9857405612 | G58: -0.9954556559 | H58: -0.118870239 | I58: 0.9883328535
C59: -1.441117764 | D59: -0.9916035118 | E59: -0.1282296153 | F59: 0.9832775246 | G59: -0.9940923387 | H59: -0.1285514589 | I59: 0.9857454541
C60: -1.431137725 | D60: -0.9902635782 | E60: -0.1378496899 | F60: 0.9806219543 | G60: -0.9926351691 | H60: -0.1381798274 | I60: 0.9829704544
C61: -1.421157685 | D61: -0.988825014 | E61: -0.1474148464 | F61: 0.9777749083 | G61: -0.991084116 | H61: -0.1477516352 | I61: 0.9800087649
C62: -1.411177645 | D62: -0.9872879625 | E62: -0.1569212741 | F62: 0.9747375209 | G62: -0.9894391625 | H62: -0.1572631896 | I62: 0.9768613748
C63: -1.401197605 | D63: -0.9856525767 | E63: -0.1663651857 | F63: 0.971511002 | G63: -0.987700306 | H63: -0.1667108155 | I63: 0.9735293516
C64: -1.391217565 | D64: -0.9839190196 | E64: -0.1757428188 | F64: 0.9680966371 | G64: -0.9858675576 | H64: -0.1760908572 | I64: 0.9700138407
C65: -1.381237525 | D65: -0.9820874637 | E65: -0.1850504374 | F65: 0.9644957864 | G65: -0.9839409425 | H65: -0.1853996803 | I65: 0.9663160647
C66: -1.371257485 | D66: -0.9801580916 | E66: -0.1942843335 | F66: 0.9607098846 | G66: -0.9819204996 | H66: -0.1946336734 | I66: 0.9624373231
C67: -1.361277445 | D67: -0.9781310954 | E67: -0.2034408284 | F67: 0.9567404398 | G67: -0.9798062816 | H67: -0.2037892493 | I67: 0.9583789915
C68: -1.351297405 | D68: -0.976006677 | E68: =D68*COS(C68) -> -0.2125162742 | F68: =D68*SIN(C68) -> 0.9525890335 | G68: -0.9775983547 | H68: =G68*COS(C68) -> -0.212862847 | I68: =G68*SIN(C68) -> 0.9541425216
C69: =C68+B$12 -> -1.341317365 | D69: -0.9737850479 | E69: -0.2215070552 | F69: 0.9482573195 | G69: -0.9752967987 | H69: -0.2218509334 | I69: 0.9497294398
C70: -1.331337325 | D70: -0.9714664295 | E70: -0.2304095897 | F70: 0.9437470236 | G70: -0.9729017067 | H70: -0.2307500046 | I70: 0.9451413472
C71: -1.321357285 | D71: -0.9690510526 | E71: -0.239220331 | F71: 0.9390599426 | G71: -0.9704131851 | H71: -0.2395565876 | I71: 0.9403799185
C72: -1.311377246 | D72: -0.966539158 | E72: -0.247935769 | F72: 0.9341979439 | G72: -0.9678313537 | H72: -0.2482672419 | I72: 0.9354469017
C73: -1.301397206 | D73: -0.9639309956 | E73: -0.2565524314 | F73: 0.9291629643 | G73: -0.9651563452 | H73: -0.256878561 | I73: 0.9303441168
C74: -1.291417166 | D74: -0.9612268254 | E74: -0.2650668854 | F74: 0.9239570099 | G74: -0.9623883055 | H74: -0.265387174 | I74: 0.9250734557
C75: -1.281437126 | D75: -0.9584269166 | E75: -0.2734757391 | F75: 0.9185821546 | G75: -0.9595273931 | H75: -0.273789747 | I75: 0.9196368809
C76: -1.271457086 | D76: -0.9555315482 | E76: -0.2817756424 | F76: 0.9130405396 | G76: -0.9565737797 | H76: -0.2820829849 | I76: 0.9140364247
C77: -1.261477046 | D77: -0.9525410085 | E77: -0.2899632886 | F77: 0.9073343728 | G77: -0.9535276494 | H77: -0.2902636322 | I77: 0.9082741888
C78: -1.251497006 | D78: -0.9494555953 | E78: -0.2980354159 | F78: 0.9014659274 | G78: -0.9503891991 | H78: -0.2983284754 | I78: 0.9023523428
C79: -1.241516966 | D79: -0.946275616 | E79: -0.3059888084 | F79: 0.8954375414 | G79: -0.9471586382 | H79: -0.3062743435 | I79: 0.8962731238
C80: -1.231536926 | D80: -0.9430013873 | E80: -0.3138202975 | F80: 0.8892516164 | G80: -0.9438361883 | H80: -0.3140981099 | I80: 0.8900388349
C81: -1.221556886 | D81: -0.9396332353 | E81: -0.3215267633 | F81: 0.8829106169 | G81: -0.9404220836 | H81: -0.3217966939 | I81: 0.8836518449
C82: -1.211576846 | D82: -0.9361714955 | E82: -0.3291051355 | F82: 0.876417069 | G82: -0.9369165703 | H82: -0.3293670618 | I82: 0.8771145868
C83: -1.201596806 | D83: -0.9326165126 | E83: -0.336552395 | F83: 0.8697735597 | G83: -0.933319907 | H83: -0.3368062282 | I83: 0.8704295568
C84: -1.191616766 | D84: -0.9289686409 | E84: -0.3438655749 | F84: 0.8629827357 | G84: -0.9296323639 | H84: -0.3441112576 | I84: 0.8635993136
C85: -1.181636727 | D85: -0.9252282435 | E85: -0.3510417616 | F85: 0.8560473025 | G85: -0.9258542236 | H85: -0.3512792654 | I85: 0.856626477
C86: -1.171656687 | D86: -0.921395693 | E86: -0.3580780963 | F86: 0.848970023 | G86: -0.9219857801 | H86: -0.3583074193 | I86: 0.8495137267
C87: -1.161676647 | D87: -0.9174713711 | E87: -0.3649717756 | F87: 0.8417537168 | G87: -0.9180273393 | H87: -0.3651929408 | I87: 0.8422638017
C88: -1.151696607 | D88: -0.9134556688 | E88: -0.3717200533 | F88: 0.8344012589 | G88: -0.9139792189 | H88: -0.3719331059 | I88: 0.8348794986
C89: -1.141716567 | D89: -0.909348986 | E89: -0.3783202409 | F89: 0.8269155783 | G89: -0.9098417477 | H89: -0.3785252466 | I89: 0.8273636707
C90: -1.131736527 | D90: -0.9051517316 | E90: -0.3847697089 | F90: 0.8192996573 | G90: -0.9056152664 | H90: -0.3849667522 | I90: 0.8197192265
C91: -1.121756487 | D91: -0.9008643238 | E91: -0.3910658879 | F91: 0.81155653 | G91: -0.9013001266 | H91: -0.3912550702 | I91: 0.8119491291
C92: -1.111776447 | D92: -0.8964871896 | E92: -0.3972062695 | F92: 0.8036892812 | G92: -0.8968966915 | H92: -0.3973877073 | I92: 0.8040563943
C93: -1.101796407 | D93: -0.892020765 | E93: -0.4031884075 | F93: 0.7957010451 | G93: -0.8924053352 | H93: -0.4033622311 | I93: 0.7960440897
C94: -1.091816367 | D94: -0.8874654947 | E94: -0.4090099186 | F94: 0.7875950043 | G94: -0.8878264428 | H94: -0.4091762703 | I94: 0.7879153332
C95: -1.081836327 | D95: -0.8828218325 | E95: -0.4146684836 | F95: 0.779374388 | G95: -0.8831604105 | H95: -0.4148275164 | I95: 0.779673292
C96: -1.071856287 | D96: -0.878090241 | E96: -0.4201618483 | F96: 0.7710424713 | G96: -0.8784076452 | H96: -0.4203137246 | I96: 0.7713211809
C97: -1.061876248 | D97: -0.8732711914 | E97: -0.4254878239 | F97: 0.7626025736 | G97: -0.8735685646 | H97: -0.4256327144 | I97: 0.7628622611
C98: -1.051896208 | D98: -0.8683651636 | E98: -0.4306442889 | F98: 0.7540580573 | G98: -0.868643597 | H98: -0.4307823711 | I98: 0.7542998392
C99: -1.041916168 | D99: -0.8633726463 | E99: -0.4356291887 | F99: 0.7454123264 | G99: -0.8636331813 | H99: -0.435760646 | I99: 0.7456372652
C100: -1.031936128 | D100: -0.8582941368 | E100: -0.4404405376 | F100: 0.7366688252 | G100: -0.8585377667 | H100: -0.4405655582 | I100: 0.7368779314
C101: -1.021956088 | D101: -0.8531301409 | E101: -0.4450764187 | F101: 0.7278310372 | G101: -0.8533578129 | H101: -0.4451951947 | I101: 0.7280252711
C102: -1.011976048 | D102: -0.8478811729 | E102: -0.4495349851 | F102: 0.7189024833 | G102: -0.8480937896 | H102: -0.4496477116 | I102: 0.719082757
C103: -1.001996008 | D103: -0.8425477556 | E103: -0.4538144605 | F103: 0.7098867204 | G103: -0.842746177 | H103: -0.4539213346 | I103: 0.7100538999
C104: -0.9920159681 | D104: -0.8371304202 | E104: -0.4579131401 | F104: 0.7007873405 | G104: -0.837315465 | H104: -0.4580143602 | I104: 0.700942247
C105: -0.9820359281 | D105: -0.8316297064 | E105: -0.461829391 | F105: 0.6916079685 | G105: -0.8318021535 | H105: -0.4619251562 | I105: 0.6917513807
C106: -0.9720558882 | D106: -0.8260461619 | E106: -0.4655616529 | F106: 0.6823522616 | G106: -0.8262067525 | H106: -0.4656521622 | I106: 0.6824849169
C107: -0.9620758483 | D107: -0.8203803429 | E107: -0.469108439 | F107: 0.6730239071 | G107: -0.8205297815 | H107: -0.4691938907 | I107: 0.6731465035
C108: -0.9520958084 | D108: -0.8146328138 | E108: -0.4724683363 | F108: 0.6636266213 | G108: -0.8147717696 | H108: -0.4725489275 | I108: 0.6637398193
C109: -0.9421157685 | D109: -0.8088041469 | E109: -0.4756400062 | F109: 0.654164148 | G109: -0.8089332557 | H109: -0.4757159322 | I109: 0.6542685717
C110: -0.9321357285 | D110: -0.8028949228 | E110: -0.4786221851 | F110: 0.644640257 | G110: -0.8030147878 | H110: -0.4786936391 | I110: 0.644736496
C111: -0.9221556886 | D111: -0.7969057301 | E111: -0.4814136849 | F111: 0.6350587426 | G111: -0.7970169235 | H111: -0.4814808573 | I111: 0.6351473533
C112: -0.9121756487 | D112: -0.7908371652 | E112: -0.4840133936 | F112: 0.6254234219 | G112: -0.7909402297 | H112: -0.4840764718 | I112: 0.6255049291
C113: -0.9021956088 | D113: -0.7846898327 | E113: -0.4864202755 | F113: 0.6157381336 | G113: -0.7847852822 | H113: -0.4864794435 | I113: 0.6158130318
C114: -0.8922155689 | D114: -0.7784643449 | E114: -0.4886333716 | F114: 0.6060067362 | G114: -0.778552666 | H114: -0.4886888098 | I114: 0.6060754911
C115: -0.8822355289 | D115: -0.7721613216 | E115: -0.4906518004 | F115: 0.5962331066 | G115: -0.772242975 | H115: -0.4907036851 | I115: 0.5962961562
C116: -0.872255489 | D116: -0.7657813908 | E116: -0.4924747575 | F116: 0.5864211385 | G116: -0.7658568121 | H116: -0.492523261 | I116: 0.5864788947
C117: -0.8622754491 | D117: -0.7593251879 | E117: -0.4941015169 | F117: 0.576574741 | G117: -0.7593947887 | H117: -0.4941468069 | I117: 0.5766275906
C118: -0.8522954092 | D118: -0.752793356 | E118: -0.4955314305 | F118: 0.5666978368 | G118: -0.752857525 | H118: -0.4955736702 | I118: 0.5667461428
C119: -0.8423153693 | D119: -0.7461865455 | E119: -0.4967639284 | F119: 0.5567943607 | G119: -0.7462456499 | H119: -0.4968032764 | I119: 0.5568384636
C120: -0.8323353293 | D120: -0.7395054146 | E120: -0.4977985199 | F120: 0.5468682582 | G120: -0.7395598004 | H120: -0.4978351297 | I120: 0.5469084768
C121: -0.8223552894 | D121: -0.7327506287 | E121: -0.4986347926 | F121: 0.5369234838 | G121: -0.7328006221 | H121: -0.4986688129 | I121: 0.5369601165
C122: -0.8123752495 | D122: -0.7259228605 | E122: -0.4992724134 | F122: 0.5269639994 | G122: -0.7259687688 | H122: -0.499303988 | I122: 0.5269973253
C123: -0.8023952096 | D123: -0.7190227901 | E123: -0.4997111282 | F123: 0.5169937727 | G123: -0.7190649025 | H123: -0.4997403958 | I123: 0.5170240525
C124: -0.7924151697 | D124: -0.7120511049 | E124: -0.4999507624 | F124: 0.5070167759 | G124: -0.7120896932 | H124: -0.4999778564 | I124: 0.5070442528
C125: -0.7824351297 | D125: -0.705008499 | E125: -0.4999912205 | F125: 0.4970369837 | G125: -0.705043819 | H125: -0.5000162693 | I125: 0.4970618845
C126: -0.7724550898 | D126: -0.6978956741 | E126: -0.4998324862 | F126: 0.4870583719 | G126: -0.6979279655 | H126: -0.4998556133 | I126: 0.487080908
C127: -0.7624750499 | D127: -0.6907133385 | E127: -0.4994746229 | F127: 0.4770849159 | G127: -0.6907428265 | H127: -0.4994959466 | I127: 0.4771052837
C128: -0.75249501 | D128: -0.6834622075 | E128: -0.4989177731 | F128: 0.4671205891 | G128: -0.6834891033 | H128: -0.4989374066 | I128: 0.4671389713
C129: -0.7425149701 | D129: -0.6761430035 | E129: -0.4981621587 | F129: 0.4571693612 | G129: -0.6761675046 | H129: -0.4981802104 | I129: 0.4571859274
C130: -0.7325349301 | D130: -0.6687564554 | E130: -0.4972080807 | F130: 0.4472351967 | G130: -0.6687787467 | H130: -0.4972246539 | I130: 0.4472501041
C131: -0.7225548902 | D131: -0.6613032989 | E131: -0.4960559192 | F131: 0.4373220532 | G131: -0.6613235534 | H131: -0.4960711124 | I131: 0.4373354475
C132: -0.7125748503 | D132: -0.6537842764 | E132: =D132*COS(C132) -> -0.4947061332 | F132: =D132*SIN(C132) -> 0.4274338801 | G132: -0.6538026555 | H132: =G132*COS(C132) -> -0.4947200403 | I132: =G132*SIN(C132) -> 0.427445896
C133: =C132+B$12 -> -0.7025948104 | D133: -0.6462001367 | E133: -0.4931592605 | F133: 0.4175746167 | G133: -0.6462167911 | H133: -0.4931719706 | I133: 0.4175853787
C134: -0.6926147705 | D134: -0.6385516352 | E134: -0.4914159172 | F134: 0.4077481908 | G134: -0.6385667055 | H134: -0.491427515 | I134: 0.407757814
C135: -0.6826347305 | D135: -0.6308395338 | E135: -0.489476798 | F135: 0.3979585174 | G135: -0.6308531507 | H135: -0.4894873636 | I135: 0.3979671075
C136: -0.6726546906 | D136: -0.6230646005 | E136: -0.4873426754 | F136: 0.3882094963 | G136: -0.6230768858 | H136: -0.4873522847 | I136: 0.3882171509
C137: -0.6626746507 | D137: -0.6152276097 | E137: -0.4850143996 | F137: 0.3785050117 | G137: -0.6152386766 | H137: -0.4850231242 | I137: 0.3785118204
C138: -0.6526946108 | D138: -0.607329342 | E138: -0.4824928981 | F138: 0.3688489297 | G138: -0.6073392954 | H138: -0.4825008056 | I138: 0.3688549747
C139: -0.6427145709 | D139: -0.5993705841 | E139: -0.4797791756 | F139: 0.3592450971 | G139: -0.5993795214 | H139: -0.4797863296 | I139: 0.3592504539
C140: -0.6327345309 | D140: -0.5913521287 | E140: -0.476874313 | F140: 0.3496973401 | G140: -0.5913601401 | H140: -0.4768807735 | I140: 0.3497020777
C141: -0.622754491 | D141: -0.5832747744 | E141: -0.4737794678 | F141: 0.3402094624 | G141: -0.5832819432 | H141: -0.4737852909 | I141: 0.3402136438
C142: -0.6127744511 | D142: -0.5751393257 | E142: -0.4704958728 | F142: 0.3307852439 | G142: -0.5751457291 | H142: -0.4705011112 | I142: 0.3307889268
C143: -0.6027944112 | D143: -0.5669465929 | E143: -0.4670248362 | F143: 0.3214284392 | G143: -0.5669523019 | H143: -0.4670295391 | I143: 0.3214316759
C144: -0.5928143713 | D144: -0.558697392 | E144: -0.4633677409 | F144: 0.3121427758 | G144: -0.5587024722 | H144: -0.4633719543 | I144: 0.3121456141
C145: -0.5828343313 | D145: -0.5503925447 | E145: -0.4595260438 | F145: 0.3029319532 | G145: -0.5503970563 | H145: -0.4595298106 | I145: 0.3029344364
C146: -0.5728542914 | D146: -0.542032878 | E146: -0.4555012754 | F146: 0.2937996408 | G146: -0.5420368765 | H146: -0.4555046356 | I146: 0.2938018082
C147: -0.5628742515 | D147: -0.5336192247 | E147: -0.4512950391 | F147: 0.284749477 | G147: -0.5336227609 | H147: -0.4512980298 | I147: 0.284751364
C148: -0.5528942116 | D148: -0.5251524227 | E148: -0.4469090107 | F148: 0.2757850671 | G148: -0.5251555432 | H148: -0.4469116663 | I148: 0.2757867058
C149: -0.5429141717 | D149: -0.5166333153 | E149: -0.4423449375 | F149: 0.2669099825 | G149: -0.5166360627 | H149: -0.4423472898 | I149: 0.2669114019
C150: -0.5329341317 | D150: -0.5080627511 | E150: -0.4376046378 | F150: 0.258127759 | G150: -0.5080651642 | H150: -0.4376067163 | I150: 0.258128985
C151: -0.5229540918 | D151: -0.4994415836 | E151: -0.4326900002 | F151: 0.2494418954 | G151: -0.4994436979 | H151: -0.4326918319 | I151: 0.2494429514
C152: -0.5129740519 | D152: -0.4907706716 | E152: -0.4276029824 | F152: 0.2408558521 | G152: -0.4907725193 | H152: -0.4276045924 | I152: 0.2408567589
C153: -0.502994012 | D153: -0.4820508786 | E153: -0.4223456113 | F153: 0.2323730495 | G153: -0.4820524892 | H153: -0.4223470224 | I153: 0.2323738259
C154: -0.4930139721 | D154: -0.4732830731 | E154: -0.4169199812 | F154: 0.2239968673 | G154: -0.4732844731 | H154: -0.4169212145 | I154: 0.2239975299
C155: -0.4830339321 | D155: -0.4644681285 | E155: -0.4113282538 | F155: 0.2157306424 | G155: -0.4644693419 | H155: -0.4113293283 | I155: 0.215731206
C156: -0.4730538922 | D156: -0.4556069227 | E156: -0.4055726566 | F156: 0.207577668 | G156: -0.4556079713 | H156: -0.40557359 | I156: 0.2075781458
C157: -0.4630738523 | D157: -0.4467003383 | E157: -0.3996554827 | F157: 0.1995411923 | G157: -0.4467012416 | H157: -0.3996562909 | I157: 0.1995415958
C158: -0.4530938124 | D158: -0.4377492624 | E158: -0.3935790894 | F158: 0.1916244167 | G158: -0.437750038 | H158: -0.3935797868 | I158: 0.1916247562
C159: -0.4431137725 | D159: -0.4287545865 | E159: -0.3873458976 | F159: 0.1838304954 | G159: -0.4287552502 | H159: -0.3873464972 | I159: 0.18383078
C160: -0.4331337325 | D160: -0.4197172064 | E160: -0.3809583904 | F160: 0.1761625334 | G160: -0.4197177724 | H160: -0.3809589041 | I160: 0.1761627709
C161: -0.4231536926 | D161: -0.4106380224 | E161: -0.3744191126 | F161: 0.1686235854 | G161: -0.4106385032 | H161: -0.374419551 | I161: 0.1686237829
C162: -0.4131736527 | D162: -0.4015179387 | E162: -0.3677306694 | F162: 0.1612166551 | G162: -0.4015183455 | H162: -0.367731042 | I162: 0.1612168184
C163: -0.4031936128 | D163: -0.3923578636 | E163: -0.3608957254 | F163: 0.1539446931 | G163: -0.3923582065 | H163: -0.3608960408 | I163: 0.1539448277
C164: -0.3932135729 | D164: -0.3831587095 | E164: -0.3539170035 | F164: 0.1468105967 | G164: -0.3831589973 | H164: -0.3539172693 | I164: 0.146810707
C165: -0.3832335329 | D165: -0.3739213927 | E165: -0.3467972842 | F165: 0.139817208 | G165: -0.3739216331 | H165: -0.3467975071 | I165: 0.1398172978
C166: -0.373253493 | D166: -0.3646468332 | E166: -0.3395394037 | F166: 0.132967313 | G166: -0.3646470331 | H166: -0.3395395898 | I166: 0.1329673859
C167: -0.3632734531 | D167: -0.3553359548 | E167: -0.3321462536 | F167: 0.1262636407 | G167: -0.3553361201 | H167: -0.3321464081 | I167: 0.1262636995
C168: -0.3532934132 | D168: -0.3459896847 | E168: -0.3246207792 | F168: 0.1197088619 | G168: -0.3459898208 | H168: -0.3246209069 | I168: 0.119708909
C169: -0.3433133733 | D169: -0.3366089539 | E169: -0.3169659787 | F169: 0.1133055879 | G169: -0.3366090653 | H169: -0.3169660835 | I169: 0.1133056254
C170: -0.3333333333 | D170: -0.3271946968 | E170: -0.3091849015 | F170: 0.1070563696 | G170: -0.3271947874 | H170: -0.3091849871 | I170: 0.1070563993
C171: -0.3233532934 | D171: -0.3177478509 | E171: -0.3012806478 | F171: 0.1009636968 | G171: -0.3177479242 | H171: -0.3012807172 | I171: 0.10096372
C172: -0.3133732535 | D172: -0.3082693573 | E172: -0.2932563663 | F172: 0.09502999664 | G172: -0.3082694161 | H172: -0.2932564222 | I172: 0.09503001477
C173: -0.3033932136 | D173: -0.2987601599 | E173: -0.285115254 | F173: 0.08925763314 | G173: -0.2987602068 | H173: -0.2851152987 | I173: 0.08925764714
C174: -0.2934131737 | D174: -0.2892212059 | E174: -0.2768605542 | F174: 0.08364890592 | G174: -0.289221243 | H174: -0.2768605897 | I174: 0.08364891665
C175: -0.2834331337 | D175: -0.2796534453 | E175: -0.2684955555 | F175: 0.07820604947 | G175: -0.2796534744 | H175: -0.2684955834 | I175: 0.07820605762
C176: -0.2734530938 | D176: -0.2700578312 | E176: -0.2600235904 | F176: 0.07293123217 | G176: -0.2700578538 | H176: -0.2600236122 | I176: 0.07293123829
C177: -0.2634730539 | D177: -0.2604353192 | E177: -0.2514480341 | F177: 0.06782655546 | G177: -0.2604353366 | H177: -0.2514480509 | I177: 0.06782656001
C178: -0.253493014 | D178: -0.2507868677 | E178: -0.242772303 | F178: 0.06289405301 | G178: -0.250786881 | H178: -0.2427723159 | I178: 0.06289405635
C179: -0.2435129741 | D179: -0.2411134378 | E179: -0.2339998535 | F179: 0.05813568987 | G179: -0.2411134478 | H179: -0.2339998633 | I179: 0.0581356923
C180: -0.2335329341 | D180: -0.2314159929 | E180: -0.2251341804 | F180: 0.05355336175 | G180: -0.2314160004 | H180: -0.2251341877 | I180: 0.05355336349
C181: -0.2235528942 | D181: -0.2216954988 | E181: -0.2161788158 | F181: 0.0491488942 | G181: -0.2216955044 | H181: -0.2161788212 | I181: 0.04914889543
C182: -0.2135728543 | D182: -0.2119529238 | E182: -0.2071373273 | F182: 0.04492404192 | G182: -0.2119529279 | H182: -0.2071373313 | I182: 0.04492404278
C183: -0.2035928144 | D183: -0.2021892383 | E183: -0.1980133171 | F183: 0.04088048807 | G183: -0.2021892411 | H183: -0.19801332 | I183: 0.04088048865
C184: -0.1936127745 | D184: -0.1924054146 | E184: -0.1888104201 | F184: 0.03701984355 | G184: -0.1924054166 | H184: -0.1888104221 | I184: 0.03701984394
C185: -0.1836327345 | D185: -0.1826024272 | E185: -0.1795323026 | F185: 0.03334364643 | G185: -0.1826024286 | H185: -0.1795323039 | I185: 0.03334364668
C186: -0.1736526946 | D186: -0.1727812526 | E186: -0.1701826609 | F186: 0.02985336125 | G186: -0.1727812535 | H186: -0.1701826618 | I186: 0.02985336141
C187: -0.1636726547 | D187: -0.1629428689 | E187: -0.1607652199 | F187: 0.02655037853 | G187: -0.1629428695 | H187: -0.1607652205 | I187: 0.02655037863
C188: -0.1536926148 | D188: -0.153088256 | E188: -0.1512837314 | F188: 0.02343601414 | G188: -0.1530882564 | H188: -0.1512837318 | I188: 0.0234360142
C189: -0.1437125749 | D189: -0.1432183955 | E189: -0.1417419727 | F189: 0.02051150882 | G189: -0.1432183958 | H189: -0.1417419729 | I189: 0.02051150885
C190: -0.1337325349 | D190: -0.1333342704 | E190: -0.1321437452 | F190: 0.01777802767 | G190: -0.1333342706 | H190: -0.1321437454 | I190: 0.01777802769
C191: -0.123752495 | D191: -0.1234368652 | E191: -0.1224928728 | F191: 0.01523665968 | G191: -0.1234368652 | H191: -0.1224928729 | I191: 0.01523665969
C192: -0.1137724551 | D192: -0.1135271655 | E192: -0.1127932002 | F192: 0.01288841731 | G192: -0.1135271656 | H192: -0.1127932003 | I192: 0.01288841732
C193: -0.1037924152 | D193: -0.1036061586 | E193: -0.1030485918 | F193: 0.01073423609 | G193: -0.1036061586 | H193: -0.1030485918 | I193: 0.0107342361
C194: -0.09381237525 | D194: -0.09367483239 | E194: -0.09326292967 | F194: 0.008774974224 | G194: -0.09367483241 | H194: -0.09326292969 | I194: 0.008774974225
C195: -0.08383233533 | D195: -0.08373417617 | E195: -0.0834401124 | F195: 0.007011412259 | G195: -0.08373417617 | H195: -0.0834401124 | I195: 0.007011412259
C196: -0.07385229541 | D196: -0.07378517999 | E196: =D196*COS(C196) -> -0.07358405328 | F196: =D196*SIN(C196) -> 0.005444252786 | G196: -0.07378517999 | H196: =G196*COS(C196) -> -0.07358405329 | I196: =G196*SIN(C196) -> 0.005444252786
C197: =C196+B$12 -> -0.06387225549 | D197: -0.06382883478 | E197: -0.06369867891 | F197: 0.004074120149 | G197: -0.06382883478 | H197: -0.06369867891 | I197: 0.004074120149
C198: -0.05389221557 | D198: -0.05386613219 | E198: -0.05378792751 | F198: 0.002901560197 | G198: -0.05386613219 | H198: -0.05378792751 | I198: 0.002901560197
C199: -0.04391217565 | D199: -0.04389806452 | E199: -0.04385574746 | F199: 0.001927040069 | G199: -0.04389806452 | H199: -0.04385574746 | I199: 0.001927040069
C200: -0.03393213573 | D200: -0.03392562458 | E200: -0.03390609565 | F200: 0.001150948003 | G200: -0.03392562458 | H200: -0.03390609565 | I200: 0.001150948003
... 304 more rows

Sheet Sheet3
